[Event "ChessHouse GM December 2020"]
[Site "Aarhus"]
[Date "2020.12.03"]
[Round "6.3"]
[White "Ramsdal, Jens Albert"]
[Black "Georgescu, Lena"]
[Result "1-0"]
[ECO "E32"]
[WhiteElo "2292"]
[BlackElo "2278"]
[Annotator "NA"]
[PlyCount "219"]
[EventDate "2020.11.29"]
[EventType "tourn"]
[EventCountry "DEN"]
[SourceTitle "playchess.com"]
[Source "ChessBase"]
[SourceQuality "1"]
[TimeControl "40/5400+30:1800+30"]

1. d4 {[%emt 0:00:00]} Nf6 {[%emt 0:00:00]} 2. c4 {[%emt 0:00:00]} e6 {[%emt 0:00:00]} 3. Nc3 {[%emt 0:00:00]} Bb4 {[%emt 0:00:00]} 4. Qc2 {[%emt 0:00:00]} O-O {[%emt 0:00:00]} 5. Nf3 {[%emt 0:00:00]} c5 {[%emt 0:00:09]} 6. dxc5 {[%emt 0:00:06]} Na6 {[%emt 0:00:04]} 7. g3 {[%emt 0:00:14]} Nxc5 {[%emt 0:00:08]} 8. Bg2 {[%emt 0:00:05]} Nce4 {[%emt 0:00:31]} 9. O-O {[%emt 0:00:13]} Nxc3 {[%emt 0:00:08]} 10. bxc3 {[%emt 0:00:02]} Be7 {[%emt 0:00:11]} 11. e4 {[%emt 0:00:10]} d6 {[%emt 0:00:35]} 12. e5 {[%emt 0:00:13]} dxe5 {[%emt 0:02:23]} 13. Nxe5 {[%emt 0:00:04]} Qc7 {[%emt 0:02:35]} 14. Qe2 {[%emt 0:00:40]} Nd7 {[%emt 0:04:57]} 15. Bf4 {[%emt 0:19:14]} Bd6 {[%emt 0:02:08]} 16. Rfe1 {[%emt 0:02:49]} Bxe5 {[%emt 0:07:14]} 17. Bxe5 {[%emt 0:00:16]} Nxe5 {[%emt 0:00:05]} 18. Qxe5 {[%emt 0:00:05]} Qxc4 {[%emt 0:01:15]} 19. Rad1 {[%emt 0:15:05]} Qxa2 {[%emt 0:10:34]} 20. Re4 {[%emt 0:14:15]} Qa3 {[%emt 0:37:01]} (20... Qb3 $15 21. Bf3 a5) 21. Rg4 {[%emt 0:04:03]} g6 {[%emt 0:01:40]} 22. h4 {[%emt 0:20:21]} Qe7 {[%emt 0:02:43]} 23. Rgd4 {[%emt 0:01:32]} a5 {[%emt 0:03:32]} (23... f6 $5 {[%cal Rf6e5]} 24. Qa5 e5 $17) 24. h5 {[%emt 0:02:15]} f6 {[%emt 0:08:40]} 25. Qb5 {[%emt 0:00:42] [#]} gxh5 $17 {[%emt 0:00:41]} 26. Be4 {[%emt 0:03:39]} f5 {[%emt 0:01:54]} 27. Bc2 {[%emt 0:00:01]} Ra6 {[%emt 0:05:10]} 28. Bb3 {[%emt 0:02:18]} Rc6 {[%emt 0:01:17]} 29. Qxa5 {[%emt 0:02:17]} Qc5 {[%emt 0:02:36]} 30. Qa2 {[%emt 0:00:06]} Qxc3 {[%emt 0:00:37]} 31. Rd8 {[%emt 0:02:08]} Qf6 {[%emt 0:01:46]} 32. Rxf8+ {[%emt 0:00:51]} Qxf8 {[%emt 0:01:32]} 33. Qa5 {[%emt 0:00:36]} Rd6 {[%emt 0:01:45]} 34. Rc1 {[%emt 0:02:13]} Rc6 {[%emt 0:01:31]} 35. Rd1 {[%emt 0:00:57]} Kg7 {[%emt 0:01:21]} 36. Ba4 {[%emt 0:04:26]} Qc5 {[%emt 0:00:42]} 37. Qd8 {[%emt 0:00:42]} Rc7 {[%emt 0:00:27]} 38. Qg5+ {[%emt 0:00:50]} Kf7 {[%emt 0:00:18]} 39. Qxh5+ {[%emt 0:03:03]} Kg7 {[%emt 0:00:28]} 40. Qg5+ {[%emt 0:00:26]} Kf7 {[%emt 0:00:25]} 41. Qh6 {[%emt 0:10:11]} Qf8 {[%emt 0:08:54]} 42. Qxh7+ {[%emt 0:01:25]} Qg7 {[%emt 0:01:54]} 43. Qh5+ {[%emt 0:00:23]} Kf6 {[%emt 0:04:00]} 44. Rd8 {[%emt 0:04:01]} b5 {[%emt 0:03:58]} 45. Bd1 {[%emt 0:06:10]} Rc1 {[%emt 0:01:58]} 46. Kh2 {[%emt 0:00:56]} Rxd1 {[%emt 0:06:22]} 47. Rxd1 {[%emt 0:01:29]} Bb7 {[%emt 0:00:31]} 48. Rd8 {[%emt 0:03:49]} Bd5 {[%emt 0:01:26]} 49. Re8 {[%emt 0:03:03]} Ke5 {[%emt 0:02:10]} 50. Rd8 {[%emt 0:01:04]} Qa7 {[%emt 0:02:18]} 51. f4+ {[%emt 0:01:39]} Ke4 {[%emt 0:02:06]} 52. Qe2+ {[%emt 0:01:25]} Qe3 {[%emt 0:00:02]} 53. Qxb5 {[%emt 0:01:09]} Qf2+ {[%emt 0:00:43]} 54. Kh3 {[%emt 0:00:22]} Qd2 {[%emt 0:00:59]} 55. Rc8 {[%emt 0:01:28]} Ke3 {[%emt 0:00:28]} 56. Qb6+ {[%emt 0:00:15]} Kf3 {[%emt 0:00:32]} 57. Qg1 {[%emt 0:00:15]} Qb2 {[%emt 0:00:32]} 58. Qf1+ {[%emt 0:00:10]} Ke4 {[%emt 0:00:25]} 59. Qg2+ {[%emt 0:01:02]} Qxg2+ {[%emt 0:00:02]} 60. Kxg2 {[%emt 0:00:05]} Ke3+ {[%emt 0:00:08]} 61. Kh2 {[%emt 0:01:11]} Kf3 {[%emt 0:00:20]} 62. Rc7 {[%emt 0:00:06]} Be4 {[%emt 0:00:17]} 63. Kh3 {[%emt 0:00:07]} Bd5 {[%emt 0:00:09]} 64. Kh4 {[%emt 0:00:06]} Be4 {[%emt 0:00:34]} 65. Rc3+ {[%emt 0:00:10]} Kg2 {[%emt 0:00:38]} 66. g4 {[%emt 0:00:13]} fxg4 {[%emt 0:00:09]} 67. Kxg4 {[%emt 0:00:07]} Bf5+ {[%emt 0:01:00]} 68. Kg5 {[%emt 0:00:06]} Kf2 {[%emt 0:00:25]} 69. Kf6 {[%emt 0:00:06]} Ke2 {[%emt 0:00:45]} 70. Ke5 {[%emt 0:01:23]} Kd2 {[%emt 0:00:36]} 71. Rg3 {[%emt 0:01:01]} Ke2 {[%emt 0:00:15]} 72. Kd4 {[%emt 0:01:52]} Kf2 {[%emt 0:00:11]} 73. Ra3 {[%emt 0:00:16]} Ke2 {[%emt 0:00:13]} 74. Ra5 {[%emt 0:00:14]} Kf3 {[%emt 0:00:32]} 75. Ke5 {[%emt 0:00:10]} Kg3 {[%emt 0:01:24]} 76. Ra3+ {[%emt 0:00:13]} Kg4 {[%emt 0:00:49]} 77. Rc3 {[%emt 0:00:04]} Kh4 {[%emt 0:00:05]} 78. Kd4 {[%emt 0:00:10]} Kg4 {[%emt 0:00:20]} 79. Ke3 {[%emt 0:00:04]} Kg3 {[%emt 0:00:09]} 80. Rc7 {[%emt 0:00:13]} Kg2 {[%emt 0:00:52]} 81. Ra7 {[%emt 0:00:15]} Kg3 {[%emt 0:00:58]} 82. Rg7+ {[%emt 0:00:04]} Kh4 {[%emt 0:00:15]} 83. Rg1 {[%emt 0:02:35]} Kh5 {[%emt 0:00:18]} 84. Kd4 {[%emt 0:01:10]} Kh4 {[%emt 0:01:04]} 85. Ke5 {[%emt 0:00:24]} Bg4 {[%emt 0:00:30]} 86. Ke4 {[%emt 0:01:12]} Kh3 {[%emt 0:00:50]} 87. Ke3 {[%emt 0:00:53]} Kh4 {[%emt 0:00:29]} 88. Kf2 {[%emt 0:00:15]} Kh5 {[%emt 0:00:19]} 89. Kg3 {[%emt 0:00:24]} Bf5 {[%emt 0:00:18]} 90. Rh1+ {[%emt 0:00:09]} Kg6 {[%emt 0:00:04]} 91. Kh4 {[%emt 0:00:08]} Be4 {[%emt 0:00:35]} 92. Ra1 {[%emt 0:00:16]} Kf5 {[%emt 0:00:29]} 93. Kg3 {[%emt 0:00:01]} Bd5 {[%emt 0:00:42]} 94. Ra5 {[%emt 0:00:14]} Kf6 {[%emt 0:00:43]} 95. Kf2 {[%emt 0:01:20]} Bc4 {[%emt 0:00:45]} 96. Rh5 {[%emt 0:00:25]} Bd5 {[%emt 0:00:27]} 97. Ke3 {[%emt 0:00:15]} Bb3 {[%emt 0:00:26]} 98. Rh6+ {[%emt 0:00:54]} Kf5 {[%emt 0:00:15]} 99. Rh8 {[%emt 0:00:04]} Bd5 {[%emt 0:00:17]} 100. Rf8+ {[%emt 0:00:05]} Kg4 {[%emt 0:00:58]} 101. Kd4 {[%emt 0:00:01]} Bb3 {[%emt 0:00:30]} 102. Ke4 {[%emt 0:01:01]} Bc2+ {[%emt 0:00:34]} 103. Ke5 {[%emt 0:00:04]} Bb3 {[%emt 0:00:41]} 104. Rd8 {[%emt 0:01:26]} Ba2 {[%emt 0:00:23]} 105. Rb8 {[%emt 0:01:57]} Kf3 {[%emt 0:00:39]} 106. Rb2 {[%emt 0:00:30]} Bc4 {[%emt 0:00:18]} 107. Rb4 {[%emt 0:00:11]} Ba2 {[%emt 0:00:41]} 108. Ra4 {[%emt 0:00:08]} Bb1 {[%emt 0:00:41]} 109. Kxe6 {[%emt 0:00:19]} Kg4 {[%emt 0:00:12]} 110. f5+ {[%emt 0:00:38]} 1-0

[Event "ChessHouse GM December 2020"]
[Site "Aarhus"]
[Date "2020.12.03"]
[Round "6.4"]
[White "Heimisson, Hilmir Freyr"]
[Black "Nilssen, Ellen Fredericia"]
[Result "1-0"]
[ECO "C18"]
[WhiteElo "2318"]
[BlackElo "2174"]
[Annotator "NA"]
[PlyCount "93"]
[EventDate "2020.11.29"]
[EventType "tourn"]
[EventCountry "DEN"]
[SourceTitle "playchess.com"]
[Source "ChessBase"]
[SourceQuality "1"]
[TimeControl "40/5400+30:1800+30"]

1. e4 {[%emt 0:00:00]} e6 {[%emt 0:00:00]} 2. d4 {[%emt 0:00:00]} d5 {[%emt 0:00:00]} 3. Nc3 {[%emt 0:00:00]} Bb4 {[%emt 0:01:00]} 4. e5 {[%emt 0:00:00]} c5 {[%emt 0:00:37]} 5. a3 {[%emt 0:00:07]} Bxc3+ {[%emt 0:00:30]} 6. bxc3 {[%emt 0:00:09]} Qa5 {[%emt 0:00:09]} 7. Bd2 {[%emt 0:00:05]} Qa4 {[%emt 0:00:08]} 8. Qb1 {[%emt 0:00:03]} c4 {[%emt 0:00:08]} 9. Qd1 {[%emt 0:00:04]} Nc6 {[%emt 0:02:54]} 10. Qg4 {[%emt 0:00:13]} g6 {[%emt 0:00:53]} 11. Qd1 {[%emt 0:00:42]} Bd7 {[%emt 0:04:08]} 12. Nf3 {[%emt 0:02:27]} O-O-O {[%emt 0:03:12]} 13. g3 {[%emt 0:05:58]} f6 {[%emt 0:08:55]} 14. h4 {[%emt 0:05:54]} fxe5 {[%emt 0:07:13]} 15. dxe5 {[%emt 0:00:56]} Nge7 {[%emt 0:00:44]} 16. Bg2 {[%emt 0:03:57]} h6 {[%emt 0:10:47]} 17. O-O {[%emt 0:14:36]} Rdf8 {[%emt 0:05:38]} 18. Re1 {[%emt 0:07:07]} Rf5 {[%emt 0:04:28]} 19. Bh3 {[%emt 0:06:41]} Rf7 {[%emt 0:01:09]} 20. Nd4 {[%emt 0:05:01]} Nxd4 {[%emt 0:02:59]} 21. cxd4 {[%emt 0:00:05]} g5 {[%emt 0:00:10]} 22. h5 {[%emt 0:13:01]} Nf5 {[%emt 0:06:04]} 23. Bb4 {[%emt 0:01:24]} Rg8 {[%emt 0:02:26]} 24. Bg4 {[%emt 0:00:32]} Kb8 {[%emt 0:09:36]} 25. Qd2 {[%emt 0:02:10]} c3 {[%emt 0:06:36]} 26. Qd1 {[%emt 0:06:57]} ({White should try} 26. Bxc3 $14 Rc8 27. Rec1) 26... Rc8 {[%emt 0:00:55]} 27. Bxf5 {[%emt 0:01:59]} Rxf5 {[%emt 0:00:10]} 28. Rb1 {[%emt 0:05:53]} Ka8 $11 {[%emt 0:03:39]} 29. Rb3 {[%emt 0:02:40]} g4 {[%emt 0:10:41]} 30. Re3 {[%emt 0:01:32]} Rxh5 {[%emt 0:02:19]} 31. Qxg4 {[%emt 0:04:07]} Rg5 {[%emt 0:02:04]} 32. Qf4 {[%emt 0:00:20]} Rcg8 {[%emt 0:02:05]} 33. Rexc3 {[%emt 0:02:30]} Bc6 {[%emt 0:00:07]} 34. Rf3 {[%emt 0:01:42]} Be8 {[%emt 0:01:45]} 35. Rbc3 {[%emt 0:00:52]} Qd7 {[%emt 0:00:43]} 36. Bd6 {[%emt 0:03:14]} Rf5 {[%emt 0:02:02]} 37. Qe3 {[%emt 0:00:51]} Bg6 {[%emt 0:00:30]} 38. Rc7 {[%emt 0:01:42]} Qb5 {[%emt 0:00:43]} 39. Qc3 {[%emt 0:01:15]} Qe8 {[%emt 0:00:43]} 40. Qb4 {[%emt 0:02:28]} b6 {[%emt 0:00:23]} 41. Rb3 {[%emt 0:09:04]} Rf7 {[%emt 0:04:50]} 42. Be7 {[%emt 0:00:36]} Rxe7 {[%emt 0:08:56]} 43. Rxe7 {[%emt 0:04:27]} Qb8 {[%emt 0:00:10]} 44. Rc3 {[%emt 0:03:20]} Rc8 {[%emt 0:03:58]} 45. Rxc8 {[%emt 0:00:22]} Qxc8 {[%emt 0:00:09]} 46. Qa4 {[%emt 0:00:07]} Qc3 {[%emt 0:00:47]} 47. Qxa7# {[%emt 0:00:11]} 1-0

[Event "ChessHouse GM December 2020"]
[Site "Aarhus"]
[Date "2020.12.03"]
[Round "6.5"]
[White "Grigorian, Spartak"]
[Black "Danielsen, Henrik"]
[Result "1-0"]
[ECO "A88"]
[WhiteElo "2433"]
[BlackElo "2517"]
[Annotator "ChessBase"]
[PlyCount "79"]
[EventDate "2020.11.29"]
[EventType "tourn"]
[EventCountry "DEN"]
[SourceTitle "playchess.com"]
[Source "ChessBase"]
[SourceQuality "1"]
[TimeControl "40/5400+30:1800+30"]

1. d4 {[%emt 0:07:36]} f5 {[%emt 0:00:00]} 2. c4 {[%emt 0:00:13]} Nf6 {[%emt 0:00:38]} 3. Nf3 {[%emt 0:00:10]} g6 {[%emt 0:00:27]} 4. g3 {[%emt 0:00:12]} Bg7 {[%emt 0:00:10]} 5. Bg2 {[%emt 0:00:02]} O-O {[%emt 0:00:15]} 6. O-O {[%emt 0:00:02]} d6 {[%emt 0:00:09]} 7. Nc3 {[%emt 0:00:03]} c6 {[%emt 0:00:11]} 8. Rb1 {[%emt 0:00:02]} a5 {[%emt 0:06:36]} 9. Qb3 {[%emt 0:00:07]} Kh8 {[%emt 0:00:29]} 10. Rd1 {[%emt 0:02:43]} Ne4 {[%emt 0:09:10]} 11. Ng5 {[%emt 0:02:15]} Nxc3 {[%emt 0:02:49]} 12. bxc3 {[%emt 0:00:44]} h6 {[%emt 0:03:32]} 13. Nf3 {[%emt 0:02:29]} Qe8 {[%emt 0:01:09]} 14. c5 {[%emt 0:08:28]} dxc5 {[%emt 0:01:14]} 15. Ne5 {[%emt 0:04:49]} cxd4 {[%emt 0:01:32]} 16. cxd4 {[%emt 0:00:16]} Nd7 {[%emt 0:00:49]} 17. a4 {[%emt 0:23:32]} Nf6 {[%emt 0:03:58]} 18. Ba3 {[%emt 0:02:30]} Kh7 {[%emt 0:00:45]} 19. e3 {[%emt 0:01:44]} Ne4 {[%emt 0:05:52]} 20. Nc4 {[%emt 0:04:16]} Be6 {[%emt 0:04:45]} 21. Qc2 {[%emt 0:08:14]} b5 {[%emt 0:01:17]} 22. Nd2 {[%emt 0:01:37]} b4 {[%emt 0:09:06]} 23. Nxe4 {[%emt 0:00:38]} fxe4 {[%emt 0:00:37]} 24. Bb2 {[%emt 0:00:09]} b3 {[%emt 0:07:54]} 25. Qd2 {[%emt 0:10:43]} Bd5 {[%emt 0:00:39]} 26. Bc3 {[%emt 0:00:44]} Qd7 {[%emt 0:01:21]} 27. Bf1 {[%emt 0:04:15]} Ra7 {[%emt 0:05:44]} 28. Rdc1 {[%emt 0:00:35]} Qf5 {[%emt 0:07:22]} 29. Rb2 {[%emt 0:05:04]} Rfa8 {[%emt 0:00:53]} 30. Be2 {[%emt 0:00:58]} e5 {[%emt 0:07:35]} 31. dxe5 {[%emt 0:04:44]} Bxe5 {[%emt 0:00:43]} 32. Bxe5 {[%emt 0:00:14]} Qxe5 {[%emt 0:00:02]} 33. Bc4 {[%emt 0:02:10]} Rb7 {[%emt 0:07:14]} 34. Bxd5 {[%emt 0:01:14]} Qxd5 {[%emt 0:00:35]} 35. Qxd5 {[%emt 0:00:27]} cxd5 {[%emt 0:00:03]} 36. Rc5 {[%emt 0:00:10]} Rd8 {[%emt 0:07:25]} 37. Kg2 {[%emt 0:00:27]} d4 {[%emt 0:00:07]} 38. exd4 {[%emt 0:00:18]} Rxd4 {[%emt 0:00:01]} 39. Rxa5 {[%emt 0:00:23]} Rc4 {[%emt 0:00:13]} 40. Ra8 1-0

[Event "ChessHouse GM December 2020"]
[Site "Aarhus"]
[Date "2020.12.03"]
[Round "7.1"]
[White "Nilssen, Ellen Fredericia"]
[Black "Thybo, Jesper Sondergaard"]
[Result "0-1"]
[ECO "D85"]
[WhiteElo "2174"]
[BlackElo "2565"]
[Annotator "ChessBase"]
[PlyCount "66"]
[EventDate "2020.11.29"]
[EventType "tourn"]
[EventCountry "DEN"]
[SourceTitle "playchess.com"]
[Source "ChessBase"]
[SourceQuality "1"]
[TimeControl "40/5400+30:1800+30"]

1. d4 {[%emt 0:00:00]} Nf6 {[%emt 0:00:00]} 2. c4 {[%emt 0:00:22]} g6 {[%emt 0:00:00]} 3. Nc3 {[%emt 0:01:51]} d5 {[%emt 0:00:31]} 4. cxd5 {[%emt 0:00:29]} Nxd5 {[%emt 0:00:02]} 5. e4 {[%emt 0:00:40]} Nxc3 {[%emt 0:00:05]} 6. bxc3 {[%emt 0:00:10]} Bg7 {[%emt 0:00:06]} 7. Be3 {[%emt 0:00:07]} c5 {[%emt 0:00:05]} 8. Qd2 {[%emt 0:00:04]} Qa5 {[%emt 0:00:42]} 9. Rc1 {[%emt 0:00:08]} O-O {[%emt 0:00:22]} 10. Nf3 {[%emt 0:00:12]} Bg4 {[%emt 0:00:07]} 11. d5 {[%emt 0:06:21]} b5 {[%emt 0:00:18]} 12. Bxc5 {[%emt 0:07:28]} Rc8 {[%emt 0:00:17]} 13. Bd4 {[%emt 0:05:08]} Bxf3 {[%emt 0:03:13]} 14. gxf3 {[%emt 0:01:07]} Bxd4 {[%emt 0:00:13]} 15. Qxd4 {[%emt 0:00:12]} Qxa2 {[%emt 0:00:15]} 16. Bd3 {[%emt 0:06:32]} Nd7 {[%emt 0:18:01]} 17. O-O {[%emt 0:01:40]} Nc5 {[%emt 0:01:32]} 18. Qe3 {[%emt 0:11:58]} a6 {[%emt 0:25:00]} 19. Rfd1 {[%emt 0:11:07]} Na4 {[%emt 0:10:46]} 20. c4 {[%emt 0:06:08]} bxc4 {[%emt 0:02:41]} 21. Bf1 {[%emt 0:01:31]} Qb3 {[%emt 0:11:33]} 22. Qd4 {[%emt 0:04:20]} c3 {[%emt 0:01:22]} 23. Bh3 {[%emt 0:05:31]} c2 {[%emt 0:03:04]} 24. Rd2 {[%emt 0:03:05]} Rc4 {[%emt 0:01:33]} 25. Qe3 {[%emt 0:01:37]} Rc3 {[%emt 0:01:33]} 26. Qe2 {[%emt 0:00:29]} Rxf3 {[%emt 0:01:42]} 27. Bg2 {[%emt 0:00:41]} Rc3 {[%emt 0:01:16]} 28. Rdxc2 {[%emt 0:00:11]} Rac8 {[%emt 0:00:32]} 29. Rxc3 {[%emt 0:04:41]} Nxc3 {[%emt 0:00:12]} 30. Rxc3 {[%emt 0:00:08]} Rxc3 {[%emt 0:00:56]} 31. Qd1 {[%emt 0:00:09]} Qxd1+ {[%emt 0:00:06]} 32. Bf1 {[%emt 0:00:04]} Qg4+ {[%emt 0:00:06]} 33. Bg2 {[%emt 0:00:03]} Rc1# 0-1

[Event "ChessHouse GM December 2020"]
[Site "Aarhus"]
[Date "2020.12.03"]
[Round "7.2"]
[White "Olsen, Filip Boe"]
[Black "Bjerre, Jonas Buhl"]
[Result "1/2-1/2"]
[ECO "E47"]
[WhiteElo "2354"]
[BlackElo "2551"]
[Annotator "ChessBase"]
[PlyCount "47"]
[EventDate "2020.11.29"]
[EventType "tourn"]
[EventCountry "DEN"]
[SourceTitle "playchess.com"]
[Source "ChessBase"]
[SourceQuality "1"]
[TimeControl "40/5400+30:1800+30"]

1. d4 {[%emt 0:00:00]} Nf6 {[%emt 0:00:00]} 2. c4 {[%emt 0:00:00]} e6 {[%emt 0:00:00]} 3. Nc3 {[%emt 0:00:00]} Bb4 {[%emt 0:00:00]} 4. e3 {[%emt 0:00:05]} O-O {[%emt 0:00:15]} 5. Bd3 {[%emt 0:00:10]} c5 {[%emt 0:00:33]} 6. Nf3 {[%emt 0:00:13]} b6 {[%emt 0:00:31]} 7. O-O {[%emt 0:00:43]} Bxc3 {[%emt 0:00:32]} 8. bxc3 {[%emt 0:00:03]} Bb7 {[%emt 0:00:18]} 9. Qe2 {[%emt 0:04:25]} Be4 {[%emt 0:06:04]} 10. Nd2 {[%emt 0:07:13]} Bxd3 {[%emt 0:02:46]} 11. Qxd3 {[%emt 0:00:03]} d5 {[%emt 0:03:48]} 12. cxd5 {[%emt 0:02:53]} exd5 {[%emt 0:02:48]} 13. f3 {[%emt 0:05:03]} Nc6 {[%emt 0:04:35]} 14. Bb2 {[%emt 0:01:57]} Rc8 {[%emt 0:03:11]} 15. a3 {[%emt 0:07:04]} Qd7 {[%emt 0:04:42]} 16. e4 {[%emt 0:08:19]} cxd4 {[%emt 0:11:43]} 17. cxd4 {[%emt 0:00:19]} dxe4 {[%emt 0:02:10]} 18. fxe4 {[%emt 0:03:41]} Ne5 {[%emt 0:05:26]} 19. Qb3 {[%emt 0:01:29]} Ng6 {[%emt 0:03:32]} 20. Rae1 {[%emt 0:04:45]} Qc6 {[%emt 0:08:01]} 21. Rc1 {[%emt 0:03:38]} Qb7 {[%emt 0:05:08]} 22. Rce1 {[%emt 0:01:43]} Qc6 {[%emt 0:11:13]} 23. Rc1 {[%emt 0:00:12]} Qb7 {[%emt 0:03:51]} 24. Rce1 {[%emt 0:00:09]} 1/2-1/2

[Event "ChessHouse GM December 2020"]
[Site "Aarhus"]
[Date "2020.12.03"]
[Round "7.3"]
[White "Haubro, Martin"]
[Black "Ramsdal, Jens Albert"]
[Result "0-1"]
[ECO "B67"]
[WhiteElo "2434"]
[BlackElo "2292"]
[Annotator "ChessBase"]
[PlyCount "76"]
[EventDate "2020.11.29"]
[EventType "tourn"]
[EventCountry "DEN"]
[SourceTitle "playchess.com"]
[Source "ChessBase"]
[SourceQuality "1"]
[TimeControl "40/5400+30:1800+30"]

1. e4 {[%emt 0:00:00]} c5 {[%emt 0:00:00]} 2. Nf3 {[%emt 0:00:00]} d6 {[%emt 0:00:00]} 3. d4 {[%emt 0:01:52]} cxd4 {[%emt 0:00:00]} 4. Nxd4 {[%emt 0:00:03]} Nf6 {[%emt 0:00:03]} 5. Nc3 {[%emt 0:00:02]} Nc6 {[%emt 0:00:07]} 6. Bg5 {[%emt 0:00:04]} e6 {[%emt 0:00:27]} 7. Qd2 {[%emt 0:00:05]} a6 {[%emt 0:00:14]} 8. O-O-O {[%emt 0:04:23]} Bd7 {[%emt 0:00:08]} 9. f4 {[%emt 0:00:52]} h6 {[%emt 0:00:05]} 10. Bxf6 {[%emt 0:01:09]} Qxf6 {[%emt 0:01:10]} 11. Nf3 {[%emt 0:16:33]} Qd8 {[%emt 0:01:19]} 12. Kb1 {[%emt 0:00:23]} Be7 {[%emt 0:01:58]} 13. Bd3 {[%emt 0:02:35]} Qb6 {[%emt 0:06:00]} 14. Rhe1 {[%emt 0:03:41]} O-O-O {[%emt 0:00:47]} 15. Qc1 {[%emt 0:07:41]} Rhe8 {[%emt 0:03:06]} 16. Nd2 {[%emt 0:00:09]} Na5 {[%emt 0:06:28]} 17. Nc4 {[%emt 0:10:57]} Nxc4 {[%emt 0:01:48]} 18. Bxc4 {[%emt 0:00:03]} Kb8 {[%emt 0:00:34]} 19. Bb3 {[%emt 0:00:18]} h5 {[%emt 0:18:17]} 20. Rd3 {[%emt 0:00:26]} h4 {[%emt 0:04:00]} 21. Qd2 {[%emt 0:05:02]} Rh8 {[%emt 0:04:13]} 22. Nd1 {[%emt 0:04:50]} Bc6 {[%emt 0:10:27]} 23. Rd4 {[%emt 0:12:54]} g5 {[%emt 0:05:05]} 24. f5 {[%emt 0:02:04]} Bf6 {[%emt 0:02:30]} 25. Rd3 {[%emt 0:07:55]} Bb5 {[%emt 0:12:00]} 26. Rde3 {[%emt 0:00:48]} Be5 {[%emt 0:03:22]} 27. a4 {[%emt 0:04:12]} Bd7 {[%emt 0:00:34]} 28. fxe6 {[%emt 0:00:05]} fxe6 {[%emt 0:00:46]} 29. g3 {[%emt 0:00:12]} Rdf8 {[%emt 0:00:57]} 30. Rd3 {[%emt 0:00:29]} hxg3 {[%emt 0:01:38]} 31. hxg3 {[%emt 0:00:09]} Qd8 {[%emt 0:03:43]} 32. Qe2 {[%emt 0:01:26]} Qa5 {[%emt 0:02:08]} 33. Rg1 {[%emt 0:01:52]} Bxa4 {[%emt 0:01:15]} 34. Bxe6 {[%emt 0:00:05]} Bb5 {[%emt 0:00:55]} 35. c4 {[%emt 0:00:15]} Ba4 {[%emt 0:01:26]} 36. Bf5 {[%emt 0:07:13]} Rh6 {[%emt 0:05:07]} 37. Ra3 {[%emt 0:02:50]} Rfh8 {[%emt 0:02:33]} 38. Bd7 {[%emt 0:02:49]} Qc5 {[%emt 0:01:12]} 0-1

[Event "ChessHouse GM December 2020"]
[Site "Aarhus"]
[Date "2020.12.03"]
[Round "7.5"]
[White "Danielsen, Henrik"]
[Black "Heimisson, Hilmir Freyr"]
[Result "1-0"]
[ECO "A46"]
[WhiteElo "2517"]
[BlackElo "2318"]
[Annotator "ChessBase"]
[PlyCount "77"]
[EventDate "2020.11.29"]
[EventType "tourn"]
[EventCountry "DEN"]
[SourceTitle "playchess.com"]
[Source "ChessBase"]
[SourceQuality "1"]
[TimeControl "40/5400+30:1800+30"]

1. d4 {[%emt 0:00:00]} Nf6 {[%emt 0:00:08]} 2. Nf3 {[%emt 0:00:53]} e6 {[%emt 0:02:42]} 3. c4 {[%emt 0:03:51]} c5 {[%emt 0:01:47]} 4. e3 {[%emt 0:01:06]} cxd4 {[%emt 0:04:13]} 5. exd4 {[%emt 0:00:16]} d5 {[%emt 0:00:04]} 6. a3 {[%emt 0:02:26]} Nc6 {[%emt 0:05:34]} 7. Nc3 {[%emt 0:00:18]} Bd6 {[%emt 0:03:06]} 8. c5 {[%emt 0:01:27]} Bc7 {[%emt 0:01:00]} 9. b4 {[%emt 0:00:49]} e5 {[%emt 0:05:23]} 10. dxe5 {[%emt 0:01:19]} Nxe5 {[%emt 0:03:10]} 11. Bb5+ {[%emt 0:00:09]} Bd7 {[%emt 0:00:52]} 12. O-O {[%emt 0:00:09]} O-O {[%emt 0:01:41]} 13. Bxd7 {[%emt 0:05:26]} Qxd7 {[%emt 0:01:35]} 14. Bg5 {[%emt 0:00:32]} Rad8 {[%emt 0:06:47]} 15. Bxf6 {[%emt 0:01:51]} gxf6 {[%emt 0:00:06]} 16. Nd4 {[%emt 0:00:19]} Kh8 {[%emt 0:03:54]} 17. f4 {[%emt 0:01:26]} Ng6 {[%emt 0:05:08]} 18. g3 {[%emt 0:01:26]} Rg8 {[%emt 0:04:11]} 19. Kh1 {[%emt 0:00:30]} Qh3 {[%emt 0:14:00]} 20. Qf3 {[%emt 0:00:31]} Ne7 {[%emt 0:11:18]} 21. Rad1 {[%emt 0:00:41]} Rg4 {[%emt 0:05:40]} 22. Nce2 {[%emt 0:10:40]} a6 {[%emt 0:05:06]} 23. Qe3 {[%emt 0:10:38]} Ng6 {[%emt 0:03:18]} 24. Rf2 {[%emt 0:02:14]} Qh5 {[%emt 0:01:14]} 25. Qf3 {[%emt 0:04:55]} Rg8 {[%emt 0:07:19]} 26. Nc2 {[%emt 0:07:22]} Bxf4 {[%emt 0:02:55]} 27. gxf4 {[%emt 0:08:07]} d4 {[%emt 0:00:31]} 28. Ncxd4 {[%emt 0:02:16]} Nh4 {[%emt 0:00:32]} 29. Qxb7 {[%emt 0:03:10]} R4g6 {[%emt 0:00:29]} 30. Qe4 {[%emt 0:06:20]} Qg4 {[%emt 0:00:38]} 31. Nf3 {[%emt 0:01:50]} f5 {[%emt 0:00:31]} 32. Qd4+ {[%emt 0:00:33]} f6 {[%emt 0:00:18]} 33. Nxh4 {[%emt 0:00:54]} Qxh4 {[%emt 0:00:29]} 34. Rg1 {[%emt 0:01:03]} Qh3 {[%emt 0:00:48]} 35. Rxg6 {[%emt 0:01:04]} Rxg6 {[%emt 0:00:01]} 36. Qc3 {[%emt 0:01:01]} Qh4 {[%emt 0:00:56]} 37. Qf3 {[%emt 0:00:23]} Rg8 {[%emt 0:00:19]} 38. Rg2 {[%emt 0:01:06]} Re8 {[%emt 0:00:27]} 39. Qg3 {[%emt 0:00:44]} 1-0

[Event "ChessHouse GM December 2020"]
[Site "Aarhus"]
[Date "2020.12.05"]
[Round "9.2"]
[White "Danielsen, Henrik"]
[Black "Bjerre, Jonas Buhl"]
[Result "1/2-1/2"]
[ECO "A46"]
[WhiteElo "2517"]
[BlackElo "2551"]
[Annotator "ChessBase"]
[PlyCount "38"]
[EventDate "2020.11.29"]
[EventType "tourn"]
[EventCountry "DEN"]
[SourceTitle "playchess.com"]
[Source "ChessBase"]
[SourceQuality "1"]
[TimeControl "40/5400+30:1800+30"]

1. d4 {[%emt 0:05:39]} Nf6 2. Nf3 {[%emt 0:00:08]} d5 {[%emt 0:00:18]} 3. c4 {[%emt 0:00:10]} e6 {[%emt 0:00:30]} 4. e3 {[%emt 0:02:35]} b6 {[%emt 0:01:57]} 5. Be2 {[%emt 0:04:04]} Bd6 {[%emt 0:01:12]} 6. O-O {[%emt 0:01:08]} O-O {[%emt 0:00:52]} 7. b3 {[%emt 0:00:11]} Bb7 {[%emt 0:01:33]} 8. Bb2 {[%emt 0:00:51]} Nbd7 {[%emt 0:01:56]} 9. Nbd2 {[%emt 0:01:13]} Qe7 {[%emt 0:05:30]} 10. Qc2 {[%emt 0:08:41]} Rac8 {[%emt 0:04:33]} 11. Rfd1 {[%emt 0:05:08]} c5 {[%emt 0:02:10]} 12. Rac1 {[%emt 0:00:56]} cxd4 {[%emt 0:06:16]} 13. Nxd4 {[%emt 0:01:07]} Bb4 {[%emt 0:09:04]} 14. Qb1 {[%emt 0:04:02]} Rfd8 {[%emt 0:12:25]} 15. N4f3 {[%emt 0:01:31]} Ba3 {[%emt 0:04:52]} 16. cxd5 {[%emt 0:02:19]} Nxd5 {[%emt 0:03:17]} 17. Rxc8 {[%emt 0:08:00]} Rxc8 {[%emt 0:01:26]} 18. Rc1 {[%emt 0:00:06]} Rxc1+ {[%emt 0:04:49]} 19. Qxc1 {[%emt 0:00:01]} Bxb2 {[%emt 0:05:44]} 1/2-1/2